[Event "Gaprindashvili Cup Women I Stage 2020"]
[Site "Online"]
[Date "2020.11.04"]
[Round "8.7"]
[White "Didbaridze, Meri"]
[Black "Zarkua, Anastasia"]
[Result "1-0"]
[ECO "A48"]
[WhiteElo "1264"]
[BlackElo "1124"]
[Annotator "NA RC"]
[PlyCount "125"]
[EventDate "2020.11.04"]
[EventType "swiss"]
[SourceTitle "playchess.com"]
[Source "ChessBase"]
[SourceQuality "1"]
[TimeControl "1500+5"]

1. d4 {[%emt 0:00:02]} Nf6 {[%emt 0:00:05]} 2. Bf4 {[%emt 0:00:09]} g6 {[%emt 0:00:34]} 3. e3 {[%emt 0:00:04]} Bg7 {[%emt 0:00:02]} 4. Nf3 {[%emt 0:00:06]} O-O {[%emt 0:00:02]} 5. Be2 {[%emt 0:00:01]} d6 {[%emt 0:00:03]} 6. O-O {[%emt 0:00:30]} Bf5 {[%emt 0:00:29]} 7. h3 {[%emt 0:00:16]} Nc6 {[%emt 0:00:12]} 8. c3 {[%emt 0:00:11]} Nd7 {[%emt 0:00:13]} 9. Bh2 {[%emt 0:00:11]} Nb6 {[%emt 0:01:36]} 10. Nbd2 {[%emt 0:00:21]} d5 {[%emt 0:00:23]} 11. Nb3 {[%emt 0:02:11]} Nc4 {[%emt 0:00:17]} 12. Qc1 {[%emt 0:00:47]} b6 {[%emt 0:00:36]} 13. Nbd2 {[%emt 0:01:04]} N6a5 {[%emt 0:01:34]} 14. Nh4 {[%emt 0:01:48]} Bd7 {[%emt 0:01:19]} 15. Nxc4 {[%emt 0:00:17]} Nxc4 {[%emt 0:00:08]} 16. Nf3 {[%emt 0:00:42]} Rc8 {[%emt 0:01:56]} 17. Bxc4 {[%emt 0:02:01]} dxc4 {[%emt 0:00:05]} 18. e4 {[%emt 0:03:01]} Bc6 {[%emt 0:01:11]} 19. Qe3 {[%emt 0:01:30]} e6 {[%emt 0:00:15]} 20. Ne5 {[%emt 0:00:37]} Bb7 {[%emt 0:00:19]} 21. Rfe1 {[%emt 0:01:43]} b5 {[%emt 0:00:40]} 22. Bf4 {[%emt 0:00:29]} Qe7 {[%emt 0:01:01]} 23. Bh6 {[%emt 0:00:38]} Rfd8 {[%emt 0:00:08]} 24. Bxg7 {[%emt 0:00:06]} Kxg7 {[%emt 0:00:03]} 25. Rad1 {[%emt 0:00:32]} h5 {[%emt 0:00:38]} 26. Qg3 {[%emt 0:01:44]} Kh7 {[%emt 0:01:03]} 27. f4 {[%emt 0:02:25]} Qf6 {[%emt 0:02:48]} 28. Qg5 {[%emt 0:01:28]} Qxg5 {[%emt 0:00:42]} 29. fxg5 {[%emt 0:00:04]} Kg7 {[%emt 0:00:54]} 30. Rf1 {[%emt 0:00:09]} Rf8 {[%emt 0:00:35]} 31. Rde1 {[%emt 0:00:38]} a5 {[%emt 0:00:37]} 32. Nd7 {[%emt 0:00:30]} Rfd8 {[%emt 0:00:16]} 33. Ne5 {[%emt 0:00:05]} Rf8 {[%emt 0:00:04]} 34. Rf6 {[%emt 0:00:19]} c6 {[%emt 0:01:02]} 35. Nd7 {[%emt 0:00:25]} Rfd8 {[%emt 0:00:05]} 36. Ne5 {[%emt 0:00:05]} Rc7 {[%emt 0:00:04]} 37. Ref1 {[%emt 0:00:05]} Rdd7 {[%emt 0:00:40]} 38. Nxd7 {[%emt 0:00:03]} Rxd7 {[%emt 0:00:02]} 39. Kf2 {[%emt 0:00:13]} Rc7 {[%emt 0:00:06]} 40. Ke3 {[%emt 0:00:02]} Ba6 {[%emt 0:00:05]} 41. a3 {[%emt 0:00:05]} Rd7 {[%emt 0:00:16]} 42. R6f2 {[%emt 0:00:15]} Rb7 {[%emt 0:00:18]} 43. Rf6 {[%emt 0:00:08]} Rd7 {[%emt 0:00:05]} 44. d5 {[%emt 0:00:05]} cxd5 {[%emt 0:00:39]} 45. exd5 {[%emt 0:00:03]} Re7 {[%emt 0:00:28]} 46. dxe6 {[%emt 0:00:06]} Rxe6+ {[%emt 0:00:03]} 47. Rxe6 {[%emt 0:00:02]} fxe6 {[%emt 0:00:03]} 48. Kd4 {[%emt 0:00:04]} Bb7 {[%emt 0:01:00]} 49. Rf2 {[%emt 0:00:06]} Bc6 {[%emt 0:00:24]} 50. Kc5 {[%emt 0:00:07]} Be8 {[%emt 0:00:05]} 51. Kd6 {[%emt 0:00:03]} e5 {[%emt 0:00:25]} 52. Kxe5 {[%emt 0:00:03]} Bc6 {[%emt 0:00:14]} 53. g3 {[%emt 0:00:04]} Be8 {[%emt 0:00:05]} 54. Rf6 {[%emt 0:00:05]} Bd7 {[%emt 0:00:15]} 55. Ra6 {[%emt 0:00:10]} Bxh3 {[%emt 0:00:20]} 56. Rxa5 {[%emt 0:00:03]} Bd7 {[%emt 0:00:03]} 57. Ra7 {[%emt 0:00:02]} Kh8 {[%emt 0:00:13]} 58. Rxd7 {[%emt 0:00:02]} b4 {[%emt 0:00:02]} 59. axb4 {[%emt 0:00:03]} h4 {[%emt 0:00:03]} 60. gxh4 {[%emt 0:00:05]} Kg8 {[%emt 0:00:01]} 61. b5 {[%emt 0:00:02]} Kh8 {[%emt 0:00:02]} 62. b6 {[%emt 0:00:01]} Kg8 {[%emt 0:00:03]} 63. b7 {[%emt 0:00:03]} 1-0

[Event "Gaprindashvili Cup Women I Stage 2020"]
[Site "Online"]
[Date "2020.11.04"]
[Round "8.10"]
[White "Antia, Sopia"]
[Black "Tsetskhladze, Mariam"]
[Result "1-0"]
[ECO "C41"]
[WhiteElo "1594"]
[BlackElo "1477"]
[Annotator "NA RC"]
[PlyCount "57"]
[EventDate "2020.11.04"]
[EventType "swiss"]
[SourceTitle "playchess.com"]
[Source "ChessBase"]
[SourceQuality "1"]
[TimeControl "1500+5"]

1. e4 {[%emt 0:00:03]} e5 {[%emt 0:00:41]} 2. Nf3 {[%emt 0:00:11]} d6 {[%emt 0:00:16]} 3. Bc4 {[%emt 0:00:08]} Be7 {[%emt 0:00:03]} 4. Nc3 {[%emt 0:00:07]} Nf6 {[%emt 0:00:16]} 5. d4 {[%emt 0:00:14]} exd4 {[%emt 0:00:02]} 6. Nxd4 {[%emt 0:00:03]} O-O {[%emt 0:00:05]} 7. O-O {[%emt 0:00:05]} Nxe4 {[%emt 0:00:09]} 8. Nxe4 {[%emt 0:01:05]} d5 {[%emt 0:00:11]} 9. Bd3 {[%emt 0:00:28]} dxe4 {[%emt 0:00:04]} 10. Bxe4 {[%emt 0:00:01]} Bf6 {[%emt 0:00:07]} 11. Be3 {[%emt 0:00:59]} c6 {[%emt 0:00:26]} 12. c3 {[%emt 0:00:30]} Nd7 {[%emt 0:00:28]} 13. Qc2 {[%emt 0:00:36]} g6 {[%emt 0:00:10]} 14. Bh6 {[%emt 0:00:13]} Bg7 {[%emt 0:00:14]} 15. Bxg7 {[%emt 0:00:01]} Kxg7 {[%emt 0:00:03]} 16. Rad1 {[%emt 0:00:13]} Qf6 {[%emt 0:00:09]} 17. f4 {[%emt 0:01:35]} Nc5 {[%emt 0:00:20]} 18. f5 {[%emt 0:01:06]} Qe5 {[%emt 0:01:28]} 19. f6+ {[%emt 0:00:27]} Kh8 {[%emt 0:00:18]} 20. Rde1 {[%emt 0:01:23]} Nxe4 {[%emt 0:01:45]} 21. Rxe4 {[%emt 0:00:05]} Qc5 {[%emt 0:00:15]} 22. Qd2 {[%emt 0:00:27]} Rd8 {[%emt 0:00:48]} 23. Qh6 {[%emt 0:00:15]} Qf8 {[%emt 0:01:08]} 24. Qh4 {[%emt 0:00:14]} c5 {[%emt 0:00:22]} 25. Nf3 {[%emt 0:00:25]} Kg8 {[%emt 0:02:59]} 26. Ng5 {[%emt 0:01:10]} h6 {[%emt 0:00:26]} 27. Nxf7 {[%emt 0:00:38]} Qxf7 {[%emt 0:04:30]} 28. Re7 {[%emt 0:00:05]} Qf8 {[%emt 0:00:21]} 29. Rg7+ {[%emt 0:00:53]} 1-0

[Event "Gaprindashvili Cup Women I Stage 2020"]
[Site "Online"]
[Date "2020.11.04"]
[Round "8.12"]
[White "Kalandadze, Mariam"]
[Black "Ashotia, Barbare"]
[Result "0-1"]
[ECO "D13"]
[WhiteElo "1147"]
[BlackElo "1076"]
[Annotator "NA RC"]
[PlyCount "64"]
[EventDate "2020.11.04"]
[EventType "swiss"]
[SourceTitle "playchess.com"]
[Source "ChessBase"]
[SourceQuality "1"]
[TimeControl "1500+5"]

1. d4 {[%emt 0:00:00]} d5 {[%emt 0:00:04]} 2. c4 {[%emt 0:00:06]} c6 {[%emt 0:00:02]} 3. Nf3 {[%emt 0:00:22]} Nf6 {[%emt 0:00:10]} 4. Nc3 {[%emt 0:00:41]} Bf5 {[%emt 0:00:12]} 5. cxd5 {[%emt 0:00:24]} cxd5 {[%emt 0:00:20]} 6. Qb3 {[%emt 0:00:12]} Qd7 {[%emt 0:00:55]} 7. Ne5 {[%emt 0:00:17]} Qc7 {[%emt 0:01:13]} 8. Nxd5 {[%emt 0:01:28]} Nxd5 {[%emt 0:00:10]} 9. Qxd5 {[%emt 0:00:05]} e6 {[%emt 0:00:08]} 10. Qb5+ {[%emt 0:00:12]} Nc6 {[%emt 0:00:36]} 11. Nxc6 {[%emt 0:00:39]} bxc6 {[%emt 0:00:06]} 12. Qc4 {[%emt 0:00:07]} Qb6 {[%emt 0:00:50]} 13. a3 {[%emt 0:00:37]} Be7 {[%emt 0:00:17]} 14. e3 {[%emt 0:00:05]} O-O {[%emt 0:00:56]} 15. Bd3 {[%emt 0:00:16]} Bxd3 {[%emt 0:00:30]} 16. Qxd3 {[%emt 0:00:05]} Rfd8 {[%emt 0:00:06]} 17. Qc2 {[%emt 0:00:16]} Rac8 {[%emt 0:00:30]} 18. O-O {[%emt 0:00:06]} c5 {[%emt 0:00:14]} 19. dxc5 {[%emt 0:00:08]} Rxc5 {[%emt 0:00:33]} 20. Qe2 {[%emt 0:00:11]} Qc6 {[%emt 0:00:23]} 21. Rd1 {[%emt 0:02:21]} Rc8 {[%emt 0:01:28]} 22. Bd2 {[%emt 0:01:38]} Rc2 {[%emt 0:00:22]} 23. b4 {[%emt 0:01:18]} Bf6 {[%emt 0:00:45]} 24. Rab1 {[%emt 0:00:32]} Qa4 {[%emt 0:01:45]} 25. Qd3 {[%emt 0:02:49]} Rd8 {[%emt 0:00:24]} 26. Qe2 {[%emt 0:00:55]} Qxa3 {[%emt 0:00:08]} 27. Rbc1 {[%emt 0:04:00]} Qa2 {[%emt 0:00:58]} 28. Rxc2 {[%emt 0:00:54]} Qxc2 {[%emt 0:00:03]} 29. Qe1 {[%emt 0:00:10]} Bc3 {[%emt 0:00:18]} 30. Rc1 {[%emt 0:03:31]} Qxd2 {[%emt 0:00:16]} 31. Qxd2 {[%emt 0:00:06]} Bxd2 {[%emt 0:00:09]} 32. Rd1 {[%emt 0:00:05]} Rd6 {[%emt 0:00:10]} 0-1

[Event "Gaprindashvili Cup Women I Stage 2020"]
[Site "Online"]
[Date "2020.11.04"]
[Round "9.1"]
[White "Sichinava, Mariam"]
[Black "Esadze, Tamari"]
[Result "1/2-1/2"]
[ECO "E18"]
[WhiteElo "1516"]
[BlackElo "1889"]
[Annotator "NA"]
[PlyCount "42"]
[EventDate "2020.11.04"]
[EventType "swiss"]
[SourceTitle "playchess.com"]
[Source "ChessBase"]
[SourceQuality "1"]
[TimeControl "1500+5"]

1. Nf3 {[%emt 0:00:02]} Nf6 {[%emt 0:00:03]} 2. g3 {[%emt 0:00:03]} e6 {[%emt 0:00:03]} 3. Bg2 {[%emt 0:00:02]} d5 {[%emt 0:00:02]} 4. c4 {[%emt 0:00:01]} Be7 {[%emt 0:00:21]} 5. d4 {[%emt 0:00:03]} O-O {[%emt 0:00:10]} 6. O-O {[%emt 0:00:03]} b6 {[%emt 0:00:21]} 7. Nc3 {[%emt 0:00:08]} Bb7 {[%emt 0:00:07]} 8. Ne5 {[%emt 0:00:05]} Nbd7 {[%emt 0:00:18]} 9. Bf4 {[%emt 0:00:26]} c5 {[%emt 0:00:23]} 10. cxd5 {[%emt 0:00:21]} Nxd5 {[%emt 0:00:18]} 11. Nxd5 {[%emt 0:00:05]} exd5 {[%emt 0:00:20]} 12. Rc1 {[%emt 0:00:54]} Nxe5 {[%emt 0:00:21]} 13. Bxe5 {[%emt 0:00:04]} Rc8 {[%emt 0:00:30]} 14. Qd2 {[%emt 0:00:35]} c4 {[%emt 0:00:21]} 15. Qc3 {[%emt 0:01:19]} b5 {[%emt 0:00:41]} 16. a3 {[%emt 0:00:15]} Bd6 {[%emt 0:00:08]} 17. Bxd6 {[%emt 0:00:07]} Qxd6 {[%emt 0:00:03]} 18. Rfe1 {[%emt 0:00:32]} Rfe8 {[%emt 0:00:04]} 19. e3 {[%emt 0:00:02]} a6 {[%emt 0:00:17]} 20. Qc2 {[%emt 0:00:29]} a5 {[%emt 0:00:30]} 21. e4 {[%emt 0:00:20]} Qg6 {[%emt 0:00:58]} 1/2-1/2

[Event "Gaprindashvili Cup Women I Stage 2020"]
[Site "Online"]
[Date "2020.11.04"]
[Round "9.2"]
[White "Bedoshvili, Dea"]
[Black "Kirtadze, Anastasia"]
[Result "1/2-1/2"]
[ECO "A46"]
[WhiteElo "1667"]
[BlackElo "1810"]
[Annotator "NA"]
[PlyCount "34"]
[EventDate "2020.11.04"]
[EventType "swiss"]
[SourceTitle "playchess.com"]
[Source "ChessBase"]
[SourceQuality "1"]
[TimeControl "1500+5"]

1. d4 {[%emt 0:00:02]} Nf6 {[%emt 0:00:04]} 2. Nf3 {[%emt 0:00:02]} e6 {[%emt 0:00:05]} 3. g3 {[%emt 0:00:30]} c5 {[%emt 0:00:05]} 4. c3 {[%emt 0:00:05]} Be7 {[%emt 0:00:06]} 5. Bg2 {[%emt 0:00:06]} O-O {[%emt 0:00:03]} 6. O-O {[%emt 0:00:05]} d5 {[%emt 0:00:32]} 7. Ne5 {[%emt 0:01:24]} Nc6 {[%emt 0:00:18]} 8. h3 {[%emt 0:01:05]} Nxe5 {[%emt 0:00:28]} 9. dxe5 {[%emt 0:00:03]} Nd7 {[%emt 0:00:04]} 10. f4 {[%emt 0:00:05]} f6 {[%emt 0:00:16]} 11. exf6 {[%emt 0:00:11]} Nxf6 {[%emt 0:00:04]} 12. Nd2 {[%emt 0:00:38]} Bd6 {[%emt 0:03:53]} 13. e4 {[%emt 0:00:30]} dxe4 {[%emt 0:01:07]} 14. Nxe4 {[%emt 0:00:08]} Nxe4 {[%emt 0:00:04]} 15. Bxe4 {[%emt 0:00:04]} Rb8 {[%emt 0:01:27]} 16. Qh5 {[%emt 0:00:38]} g6 {[%emt 0:00:10]} 17. Bxg6 {[%emt 0:00:06]} hxg6 {[%emt 0:00:35]} 1/2-1/2

[Event "Gaprindashvili Cup Women I Stage 2020"]
[Site "Online"]
[Date "2020.11.04"]
[Round "9.3"]
[White "Tsotsonava, Elene"]
[Black "Mgeladze, Kesaria"]
[Result "1-0"]
[ECO "B52"]
[WhiteElo "1805"]
[BlackElo "1380"]
[Annotator "NA"]
[PlyCount "85"]
[EventDate "2020.11.04"]
[EventType "swiss"]
[SourceTitle "playchess.com"]
[Source "ChessBase"]
[SourceQuality "1"]
[TimeControl "1500+5"]

1. e4 {[%emt 0:00:00]} c5 {[%emt 0:00:03]} 2. Nf3 {[%emt 0:00:02]} d6 {[%emt 0:00:01]} 3. Bb5+ {[%emt 0:00:03]} Bd7 {[%emt 0:00:12]} 4. Bxd7+ {[%emt 0:00:03]} Qxd7 {[%emt 0:00:02]} 5. c4 {[%emt 0:00:02]} Nc6 {[%emt 0:00:06]} 6. O-O {[%emt 0:00:05]} g6 {[%emt 0:00:09]} 7. d4 {[%emt 0:00:04]} cxd4 {[%emt 0:00:01]} 8. Nxd4 {[%emt 0:00:01]} Bg7 {[%emt 0:00:04]} 9. Be3 {[%emt 0:00:06]} Nf6 {[%emt 0:00:05]} 10. f3 {[%emt 0:00:01]} O-O {[%emt 0:00:06]} 11. Nc3 {[%emt 0:00:02]} e6 {[%emt 0:02:09]} 12. Rc1 {[%emt 0:00:42]} Rac8 {[%emt 0:01:03]} 13. Nde2 {[%emt 0:01:49]} Rfd8 {[%emt 0:02:00]} 14. Nf4 {[%emt 0:01:31]} Ne7 {[%emt 0:03:13]} 15. b3 {[%emt 0:01:30]} g5 {[%emt 0:01:41]} 16. Nfe2 {[%emt 0:00:27]} h6 {[%emt 0:00:09]} 17. Bxa7 {[%emt 0:00:18]} Qc7 {[%emt 0:03:20]} 18. Be3 {[%emt 0:00:43]} Ng6 {[%emt 0:00:30]} 19. Qe1 {[%emt 0:00:16]} Nh5 {[%emt 0:01:19]} 20. Qf2 {[%emt 0:00:14]} Qd7 {[%emt 0:00:25]} 21. Bb6 {[%emt 0:00:17]} Re8 {[%emt 0:00:05]} 22. Rfd1 {[%emt 0:00:12]} Qe7 {[%emt 0:00:38]} 23. g3 {[%emt 0:00:56]} Kh7 {[%emt 0:02:06]} 24. Kg2 {[%emt 0:00:58]} Rg8 {[%emt 0:00:23]} 25. Nb5 {[%emt 0:00:58]} Rc6 {[%emt 0:00:19]} 26. Bd4 {[%emt 0:00:44]} Bf8 {[%emt 0:00:57]} 27. b4 {[%emt 0:00:40]} f5 {[%emt 0:00:37]} 28. c5 {[%emt 0:00:13]} dxc5 {[%emt 0:01:48]} 29. Bxc5 {[%emt 0:00:03]} Qf7 {[%emt 0:00:15]} 30. Ned4 {[%emt 0:00:53]} Rxc5 {[%emt 0:01:07]} 31. bxc5 {[%emt 0:00:10]} f4 {[%emt 0:01:13]} 32. g4 {[%emt 0:00:19]} Nh4+ {[%emt 0:00:03]} 33. Kh1 {[%emt 0:00:05]} Nf6 {[%emt 0:00:03]} 34. c6 {[%emt 0:00:11]} bxc6 {[%emt 0:00:30]} 35. Rxc6 {[%emt 0:00:07]} Kh8 {[%emt 0:00:04]} 36. Rc7 {[%emt 0:00:07]} Qg6 {[%emt 0:00:10]} 37. Nxe6 {[%emt 0:00:27]} Nxg4 {[%emt 0:00:04]} 38. Qd4+ {[%emt 0:00:35]} Nf6 {[%emt 0:00:08]} 39. Nxf8 {[%emt 0:00:21]} Rxf8 {[%emt 0:00:03]} 40. Qc3 {[%emt 0:01:46]} Qh5 {[%emt 0:00:23]} 41. Rd8 {[%emt 0:00:40]} Kg8 {[%emt 0:00:36]} 42. Rxf8+ {[%emt 0:00:04]} Kxf8 {[%emt 0:00:01]} 43. Qxf6+ {[%emt 0:00:02]} 1-0

[Event "Gaprindashvili Cup Women I Stage 2020"]
[Site "Online"]
[Date "2020.11.04"]
[Round "9.4"]
[White "Lagazauri, Tamar"]
[Black "Didbaridze, Meri"]
[Result "1-0"]
[ECO "A25"]
[WhiteElo "1657"]
[BlackElo "1264"]
[Annotator "NA"]
[PlyCount "91"]
[EventDate "2020.11.04"]
[EventType "swiss"]
[SourceTitle "playchess.com"]
[Source "ChessBase"]
[SourceQuality "1"]
[TimeControl "1500+5"]

1. c4 {[%emt 0:00:00]} e5 {[%emt 0:00:03]} 2. Nc3 {[%emt 0:00:03]} Nc6 {[%emt 0:00:09]} 3. g3 {[%emt 0:00:02]} Nf6 {[%emt 0:00:15]} 4. Bg2 {[%emt 0:00:04]} Bb4 {[%emt 0:00:06]} 5. Nd5 {[%emt 0:00:16]} Nxd5 {[%emt 0:01:28]} 6. cxd5 {[%emt 0:00:16]} Nd4 {[%emt 0:01:15]} 7. e3 {[%emt 0:00:42]} Nf5 {[%emt 0:00:31]} 8. Qg4 {[%emt 0:00:26]} Qf6 {[%emt 0:00:25]} 9. Qxb4 {[%emt 0:00:13]} d6 {[%emt 0:00:20]} 10. Ne2 {[%emt 0:00:38]} O-O {[%emt 0:00:07]} 11. O-O {[%emt 0:00:37]} b6 {[%emt 0:00:17]} 12. e4 {[%emt 0:01:13]} Ne7 {[%emt 0:00:34]} 13. Qa3 {[%emt 0:00:16]} Ng6 {[%emt 0:00:16]} 14. f4 {[%emt 0:01:18]} exf4 {[%emt 0:01:13]} 15. Nxf4 {[%emt 0:00:07]} Nxf4 {[%emt 0:00:23]} 16. Rxf4 {[%emt 0:00:09]} Qe7 {[%emt 0:00:06]} 17. b4 {[%emt 0:02:38]} Bd7 {[%emt 0:01:14]} 18. Qc3 {[%emt 0:00:34]} Rac8 {[%emt 0:00:14]} 19. Bb2 {[%emt 0:00:06]} f6 {[%emt 0:00:03]} 20. Rc1 {[%emt 0:02:38]} Bb5 {[%emt 0:00:27]} 21. Bf1 {[%emt 0:00:57]} Bxf1 {[%emt 0:00:20]} 22. Rcxf1 {[%emt 0:00:14]} Rce8 {[%emt 0:01:05]} 23. d3 {[%emt 0:00:18]} a6 {[%emt 0:01:37]} 24. Qd4 {[%emt 0:01:15]} Rf7 {[%emt 0:00:23]} 25. Qf2 {[%emt 0:00:28]} Ref8 {[%emt 0:00:11]} 26. g4 {[%emt 0:00:29]} Qe8 {[%emt 0:02:34]} 27. g5 {[%emt 0:00:41]} fxg5 {[%emt 0:02:07]} 28. Rxf7 {[%emt 0:00:06]} Rxf7 {[%emt 0:00:31]} 29. Qxf7+ {[%emt 0:00:03]} Qxf7 {[%emt 0:00:03]} 30. Rxf7 {[%emt 0:00:02]} Kxf7 {[%emt 0:00:02]} 31. Kf2 {[%emt 0:00:05]} g6 {[%emt 0:00:36]} 32. e5 {[%emt 0:00:32]} dxe5 {[%emt 0:01:53]} 33. Bxe5 {[%emt 0:00:04]} c5 {[%emt 0:00:24]} 34. dxc6 {[%emt 0:00:05]} Ke7 {[%emt 0:00:04]} 35. c7 {[%emt 0:00:04]} Kd7 {[%emt 0:00:02]} 36. a4 {[%emt 0:00:09]} g4 {[%emt 0:00:05]} 37. Kg3 {[%emt 0:00:05]} h5 {[%emt 0:00:03]} 38. h3 {[%emt 0:00:06]} gxh3 {[%emt 0:00:04]} 39. Kxh3 {[%emt 0:00:02]} b5 {[%emt 0:00:04]} 40. a5 {[%emt 0:00:06]} Kc8 {[%emt 0:00:03]} 41. Kh4 {[%emt 0:00:04]} Kd7 {[%emt 0:00:15]} 42. Kg5 {[%emt 0:00:03]} Kc8 {[%emt 0:00:05]} 43. Kxg6 {[%emt 0:00:02]} h4 {[%emt 0:00:02]} 44. Kg5 {[%emt 0:00:05]} h3 {[%emt 0:00:03]} 45. Kg4 {[%emt 0:00:02]} h2 {[%emt 0:00:02]} 46. Bxh2 {[%emt 0:00:02]} 1-0

[Event "Gaprindashvili Cup Women I Stage 2020"]
[Site "Online"]
[Date "2020.11.04"]
[Round "9.5"]
[White "Dolakidze, Mariam"]
[Black "Khazhomia, Anuki"]
[Result "0-1"]
[ECO "A10"]
[WhiteElo "1416"]
[BlackElo "1880"]
[Annotator "NA"]
[PlyCount "96"]
[EventDate "2020.11.04"]
[EventType "swiss"]
[SourceTitle "playchess.com"]
[Source "ChessBase"]
[SourceQuality "1"]
[TimeControl "1500+5"]

1. Nf3 {[%emt 0:00:00]} f5 {[%emt 0:00:14]} 2. c4 {[%emt 0:00:08]} Nf6 {[%emt 0:00:07]} 3. Nc3 {[%emt 0:00:03]} g6 {[%emt 0:00:19]} 4. b3 {[%emt 0:00:18]} Bg7 {[%emt 0:00:03]} 5. Bb2 {[%emt 0:00:01]} d6 {[%emt 0:00:04]} 6. Nd5 {[%emt 0:00:06]} e5 {[%emt 0:00:07]} 7. Nxf6+ {[%emt 0:00:06]} Qxf6 {[%emt 0:00:45]} 8. g3 {[%emt 0:00:33]} b6 {[%emt 0:01:52]} 9. Bg2 {[%emt 0:00:10]} Bb7 {[%emt 0:00:04]} 10. O-O {[%emt 0:00:31]} c5 {[%emt 0:01:07]} 11. Nxe5 {[%emt 0:00:28]} Bxg2 {[%emt 0:04:35]} 12. Nd3 {[%emt 0:00:06]} Qe7 {[%emt 0:00:14]} 13. Kxg2 {[%emt 0:00:04]} Bxb2 {[%emt 0:00:31]} 14. Nxb2 {[%emt 0:00:03]} h5 {[%emt 0:00:42]} 15. Qc2 {[%emt 0:00:52]} h4 {[%emt 0:00:54]} 16. Qd3 {[%emt 0:00:04]} Nc6 {[%emt 0:00:42]} 17. Qd5 {[%emt 0:00:07]} Rc8 $14 {[%emt 0:02:28]} 18. e3 {[%emt 0:00:09]} Nb4 {[%emt 0:01:05]} 19. Qf3 {[%emt 0:00:03]} Rh5 {[%emt 0:05:20]} 20. a3 {[%emt 0:05:25]} Nc6 {[%emt 0:00:04]} 21. Nd3 {[%emt 0:00:15]} Ne5 {[%emt 0:02:03]} 22. Nxe5 {[%emt 0:00:12]} dxe5 {[%emt 0:00:22]} 23. d3 {[%emt 0:00:43]} Kf7 {[%emt 0:02:21]} 24. Rg1 {[%emt 0:02:30]} Rch8 {[%emt 0:00:06]} 25. Kf1 {[%emt 0:00:06]} Rd8 {[%emt 0:00:13]} 26. Ke2 {[%emt 0:00:08]} e4 {[%emt 0:00:09]} 27. dxe4 {[%emt 0:00:03]} Qe5 {[%emt 0:00:07]} 28. Rgd1 {[%emt 0:03:08]} Qb2+ {[%emt 0:00:03]} 29. Kf1 {[%emt 0:00:10]} Re8 {[%emt 0:00:17]} 30. Rd7+ {[%emt 0:00:31]} Kg8 {[%emt 0:00:15]} 31. Rad1 {[%emt 0:00:03]} Rxe4 {[%emt 0:00:04]} 32. Rd8+ {[%emt 0:00:59]} Kg7 {[%emt 0:00:03]} 33. R8d7+ {[%emt 0:03:41]} Kh6 {[%emt 0:00:02]} 34. Rxa7 {[%emt 0:03:32]} hxg3 {[%emt 0:00:05]} 35. Qxg3 {[%emt 0:00:02]} Qxb3 {[%emt 0:00:10]} 36. Rdd7 {[%emt 0:00:25]} Qxc4+ {[%emt 0:00:03]} 37. Kg2 {[%emt 0:00:01]} Rg4 {[%emt 0:00:12]} 38. Rh7+ {[%emt 0:00:07]} Kg5 {[%emt 0:00:02]} 39. f4+ {[%emt 0:00:27]} Kf6 {[%emt 0:00:02]} 40. Rhb7 {[%emt 0:01:14]} Rxg3+ {[%emt 0:00:03]} 41. Kxg3 {[%emt 0:00:02]} Qe6 {[%emt 0:00:12]} 42. Kg2 {[%emt 0:00:27]} Qe4+ {[%emt 0:00:04]} 43. Kg3 {[%emt 0:00:09]} Qxe3+ {[%emt 0:00:02]} 44. Kg2 {[%emt 0:00:01]} Qe2+ {[%emt 0:00:03]} 45. Kg1 {[%emt 0:00:05]} Qxh2+ {[%emt 0:00:02]} 46. Kf1 {[%emt 0:00:01]} Qxf4+ {[%emt 0:00:02]} 47. Ke2 {[%emt 0:00:06]} Rh2+ {[%emt 0:00:03]} 48. Kd3 {[%emt 0:00:02]} Qd4# {[%emt 0:00:02]} 0-1

[Event "Gaprindashvili Cup Women I Stage 2020"]
[Site "Online"]
[Date "2020.11.04"]
[Round "9.6"]
[White "Ashotia, Barbare"]
[Black "Maghlakelidze, Rusudan"]
[Result "0-1"]
[ECO "B22"]
[WhiteElo "1076"]
[BlackElo "1613"]
[Annotator "NA"]
[PlyCount "112"]
[EventDate "2020.11.04"]
[EventType "swiss"]
[SourceTitle "playchess.com"]
[Source "ChessBase"]
[SourceQuality "1"]
[TimeControl "1500+5"]

1. e4 {[%emt 0:00:00]} c5 {[%emt 0:00:02]} 2. c3 {[%emt 0:00:04]} g6 {[%emt 0:00:02]} 3. d4 {[%emt 0:00:07]} cxd4 {[%emt 0:00:02]} 4. cxd4 {[%emt 0:00:03]} d5 {[%emt 0:00:02]} 5. e5 {[%emt 0:00:12]} Bg7 {[%emt 0:00:12]} 6. Nc3 {[%emt 0:00:27]} Nc6 {[%emt 0:00:23]} 7. g3 {[%emt 0:00:30]} Nh6 {[%emt 0:00:56]} 8. Bg2 {[%emt 0:00:12]} e6 {[%emt 0:00:02]} 9. Nf3 {[%emt 0:00:43]} Nf5 {[%emt 0:00:47]} 10. O-O {[%emt 0:00:19]} Qb6 {[%emt 0:00:06]} 11. Na4 {[%emt 0:01:51]} Qc7 {[%emt 0:00:30]} 12. b3 {[%emt 0:00:32]} O-O {[%emt 0:00:25]} 13. Ba3 {[%emt 0:00:38]} Re8 {[%emt 0:00:39]} 14. Nc3 {[%emt 0:00:29]} Ncxd4 {[%emt 0:05:53]} 15. Nxd4 {[%emt 0:02:29]} Qxc3 {[%emt 0:00:16]} 16. Nxf5 {[%emt 0:00:41]} gxf5 {[%emt 0:00:04]} 17. f4 {[%emt 0:00:21]} f6 {[%emt 0:00:23]} 18. exf6 {[%emt 0:01:37]} Bxf6 {[%emt 0:00:43]} 19. Rc1 {[%emt 0:00:48]} Qd4+ {[%emt 0:00:08]} 20. Qxd4 {[%emt 0:00:05]} Bxd4+ {[%emt 0:00:02]} 21. Kh1 {[%emt 0:00:02]} Bd7 {[%emt 0:00:35]} 22. Rfe1 {[%emt 0:01:49]} Rac8 {[%emt 0:00:17]} 23. Bf3 {[%emt 0:00:38]} Rxc1 {[%emt 0:00:37]} 24. Rxc1 {[%emt 0:00:09]} Rc8 {[%emt 0:00:02]} 25. Rxc8+ {[%emt 0:00:49]} Bxc8 {[%emt 0:00:03]} 26. Kg2 {[%emt 0:00:15]} Bd7 {[%emt 0:01:03]} 27. Be2 {[%emt 0:00:45]} Bc6 {[%emt 0:01:00]} 28. Bb4 {[%emt 0:02:49]} Be3 {[%emt 0:00:10]} 29. Bf3 {[%emt 0:00:50]} Bb5 {[%emt 0:00:09]} 30. h3 {[%emt 0:00:45]} Bd3 {[%emt 0:00:35]} 31. Bd1 {[%emt 0:00:28]} Be4+ {[%emt 0:00:45]} 32. Kf1 {[%emt 0:00:26]} Bd4 {[%emt 0:02:02]} 33. Bd2 {[%emt 0:01:44]} Kf7 {[%emt 0:01:15]} 34. g4 {[%emt 0:00:21]} Ke7 {[%emt 0:00:16]} 35. Bb4+ {[%emt 0:01:06]} Kd7 {[%emt 0:00:07]} 36. Bd2 {[%emt 0:00:07]} Bg7 {[%emt 0:02:20]} 37. g5 {[%emt 0:00:35]} d4 {[%emt 0:01:19]} 38. Kf2 {[%emt 0:00:54]} Kd6 {[%emt 0:00:43]} 39. Bb4+ {[%emt 0:00:23]} Kd5 {[%emt 0:00:06]} 40. h4 {[%emt 0:00:30]} e5 {[%emt 0:01:59]} 41. fxe5 {[%emt 0:00:08]} Bxe5 {[%emt 0:00:31]} 42. Bd2 {[%emt 0:00:03]} d3 {[%emt 0:00:28]} 43. h5 {[%emt 0:00:14]} f4 {[%emt 0:00:06]} 44. a3 {[%emt 0:00:07]} Bd4+ {[%emt 0:00:03]} 45. Kf1 {[%emt 0:00:06]} Ke5 {[%emt 0:00:26]} 46. Bb4 {[%emt 0:00:10]} Kf5 {[%emt 0:00:05]} 47. Be7 {[%emt 0:00:05]} d2 {[%emt 0:00:05]} 48. Ke2 {[%emt 0:00:07]} Be3 {[%emt 0:00:07]} 49. h6 {[%emt 0:00:11]} b6 {[%emt 0:00:04]} 50. b4 {[%emt 0:00:04]} Bd5 {[%emt 0:00:07]} 51. Bc2+ {[%emt 0:00:06]} Kg4 {[%emt 0:00:04]} 52. Bd1 {[%emt 0:00:10]} Bf3+ {[%emt 0:00:04]} 53. Kd3 {[%emt 0:00:10]} Bxd1 {[%emt 0:00:05]} 54. g6 {[%emt 0:00:02]} Bb3 {[%emt 0:00:03]} 55. gxh7 {[%emt 0:00:07]} d1=Q+ {[%emt 0:00:03]} 56. Ke4 {[%emt 0:00:05]} Qd4# {[%emt 0:00:02]} 0-1